bitfinex/quotes_BTCUSD_20250623
["timestamp","ask_amount","ask_price","bid_price","bid_amount"]
[1750643717732,1.23498817,101310.0,101300.0,9.7e-05]
[1750643718134,1.23494817,101310.0,101300.0,9.7e-05]
[1750643718670,1.23495346,101310.0,101300.0,9.7e-05]
[1750643719589,1.23499346,101310.0,101300.0,9.7e-05]
[1750643720201,1.23410346,101310.0,101300.0,9.7e-05]
[1750643720404,1.23499346,101310.0,101300.0,9.7e-05]
[1750643720619,1.23499346,101310.0,101300.0,0.030997]
[1750643720832,0.94319489,101310.0,101300.0,0.061297]
[1750643721041,0.44776632,101310.0,101300.0,0.061297]
[1750643721247,0.70897589,101310.0,101300.0,0.061297]
[1750643721453,0.41807109,101310.0,101300.0,0.062497]
[1750643721656,0.70204647,101310.0,101300.0,0.061297]
[1750643721858,0.70897964,101310.0,101300.0,0.061297]
[1750643722060,0.70986964,101310.0,101300.0,0.030997]
[1750643722686,0.70986964,101310.0,101300.0,0.063097]
[1750643723378,0.70897964,101310.0,101300.0,0.063097]
[1750643724445,0.7089838,101310.0,101300.0,0.063097]
[1750643725472,0.70294063,101310.0,101300.0,0.063097]
[1750643727171,0.70293898,101310.0,101300.0,0.063097]
[1750643727376,0.70204898,101310.0,101300.0,0.063097]
[1750643727584,0.70987162,101310.0,101300.0,0.063097]
[1750643727821,1.00078019,101310.0,101300.0,9.7e-05]
[1750643728519,1.00078103,101310.0,101300.0,9.7e-05]
[1750643728920,1.00078076,101310.0,101300.0,9.7e-05]
[1750643729356,1.00078076,101310.0,101300.0,0.031197]
[1750643729978,1.00077881,101310.0,101300.0,0.063097]
[1750643730698,1.00077881,101310.0,101300.0,9.7e-05]
[1750643731967,1.00077981,101310.0,101300.0,9.7e-05]
[1750643732802,1.00078442,101310.0,101300.0,9.7e-05]
[1750643733023,1.0244623,101310.0,101300.0,9.7e-05]
[1750643735604,1.00597189,101310.0,101300.0,9.7e-05]
[1750643735814,1.02448025,101310.0,101300.0,9.7e-05]
[1750643737297,1.02448669,101310.0,101300.0,9.7e-05]
[1750643738605,1.02452775,101310.0,101300.0,9.7e-05]
[1750643739035,1.05422675,101310.0,101300.0,9.7e-05]
[1750643741409,1.05423717,101310.0,101300.0,9.7e-05]
[1750643742476,1.05423717,101310.0,101300.0,0.030897]
[1750643742704,1.05423717,101310.0,101300.0,0.061497]
[1750643744178,1.05424144,101310.0,101300.0,0.061497]
[1750643745270,0.4715343,101310.0,101300.0,0.062647]
[1750643745473,0.70906599,101310.0,101300.0,0.062647]
[1750643746983,0.69979931,101310.0,101300.0,0.062647]
[1750643747213,0.07120722,101310.0,101300.0,0.35602322]
[1750643747441,0.07120722,101310.0,101300.0,0.062647]
[1750643747648,0.07120722,101310.0,101300.0,0.13574669]
[1750643748071,0.03199655,101310.0,101300.0,0.13574669]
[1750643748279,0.01346475,101310.0,101300.0,0.062647]
[1750643748611,0.01346475,101310.0,101300.0,0.065647]
[1750643749234,0.01346475,101310.0,101300.0,0.070647]
[1750643749910,0.01345209,101310.0,101300.0,0.072647]
[1750643750298,0.00419885,101310.0,101300.0,0.070647]
[1750643750536,0.00419885,101310.0,101300.0,0.073647]
[1750643754125,0.12500434,101320.0,101310.0,0.0658]
[1750643754327,0.12500434,101320.0,101310.0,0.06695]
[1750643755311,0.12500434,101320.0,101310.0,0.07195]
[1750643755516,0.12500434,101320.0,101310.0,0.0708]
[1750643756159,0.12500434,101320.0,101310.0,0.07195]
[1750643756567,0.12500434,101320.0,101310.0,0.06895]
[1750643756778,0.12500434,101320.0,101310.0,0.06795]
[1750643760972,0.13424504,101320.0,101310.0,0.06795]
[1750643761639,0.13424504,101320.0,101310.0,0.0668]
[1750643761838,0.13424504,101320.0,101310.0,0.06795]
[1750643762569,0.15272884,101320.0,101310.0,0.06795]
[1750643762779,0.15273059,101320.0,101310.0,0.06795]
[1750643763187,0.15273211,101320.0,101310.0,0.06795]
[1750643764042,0.15273211,101320.0,101310.0,0.0668]
[1750643764435,0.1527334,101320.0,101310.0,0.0668]
[1750643764685,0.15267467,101320.0,101310.0,0.0668]
[1750643765104,0.35788536,101320.0,101310.0,0.0668]
[1750643765765,0.35877536,101320.0,101310.0,0.0668]
[1750643765975,0.34029141,101320.0,101310.0,0.0668]
[1750643766188,0.35878163,101320.0,101310.0,0.0668]
[1750643766395,0.51990163,101320.0,101310.0,0.0668]
[1750643766696,0.51901163,101320.0,101310.0,0.0668]
[1750643766886,0.51990163,101320.0,101310.0,0.0668]
[1750643767395,0.52594703,101320.0,101310.0,0.001]
[1750643767586,0.52683703,101320.0,101310.0,0.001]
[1750643768815,0.52683984,101320.0,101310.0,0.001]
[1750643769031,0.52683984,101320.0,101310.0,0.033]
[1750643769465,0.57015984,101320.0,101310.0,0.033]
[1750643770220,0.57015984,101320.0,101310.0,0.0647]
[1750643770422,0.56926984,101320.0,101310.0,0.0647]
[1750643771278,0.57015984,101320.0,101310.0,0.0647]
[1750643771464,0.56926984,101320.0,101310.0,0.0647]
[1750643771656,0.56002223,101320.0,101310.0,0.0647]
[1750643771881,0.56927469,101320.0,101310.0,0.0647]
[1750643772809,0.57016469,101320.0,101310.0,0.0647]
[1750643774665,0.5938672,101320.0,101310.0,0.0647]
[1750643775082,0.57016469,101320.0,101310.0,0.0647]
[1750643775505,0.59386717,101320.0,101310.0,0.0647]
[1750643775717,1.01944574,101320.0,101300.0,0.050997]
[1750643775925,0.58270714,101310.0,101300.0,0.02741185]
[1750643776169,0.61738553,101310.0,101300.0,0.02741185]
[1750643776621,0.34,101300.0,101280.0,0.00121]
[1750643776838,0.29090857,101290.0,101280.0,0.00134885]
[1750643777055,0.31865125,101290.0,101280.0,0.00134885]
[1750643777519,0.31867639,101290.0,101280.0,0.00134885]
[1750643778571,0.65867639,101290.0,101280.0,0.00013885]
[1750643778795,0.65867639,101290.0,101280.0,0.03403885]
[1750643778994,0.65867639,101290.0,101280.0,0.06463885]
[1750643780272,0.65867566,101290.0,101280.0,0.06463885]
[1750643780731,0.65956566,101290.0,101280.0,0.06463885]
[1750643782568,0.31956566,101290.0,101280.0,0.06463885]
[1750643782776,0.31031393,101290.0,101280.0,0.06463885]
[1750643782981,0.31956057,101290.0,101280.0,0.06463885]
[1750643784426,0.31867057,101290.0,101280.0,0.06463885]
[1750643784646,0.31866592,101290.0,101280.0,0.06463885]
[1750643785557,0.31955592,101290.0,101280.0,0.06463885]
[1750643785700,0.31951593,101290.0,101280.0,0.06463885]
[1750643786267,0.9495345,101290.0,101280.0,0.05993885]
[1750643786467,1.20946011,101290.0,101260.0,0.0001]
[1750643786656,0.63090857,101270.0,101260.0,0.0001]
[1750643786854,0.81974593,101270.0,101260.0,0.0001]
[1750643787270,0.81974593,101270.0,101260.0,0.00131]
[1750643788527,0.81973908,101270.0,101260.0,0.00131]
[1750643788705,0.85348173,101270.0,101260.0,0.00131]
[1750643788881,0.81973908,101270.0,101260.0,0.0001]
[1750643789083,0.81973908,101270.0,101260.0,0.0021]
[1750643789286,0.81972461,101270.0,101260.0,0.0377]
[1750643789450,0.85005784,101270.0,101260.0,0.0681]
[1750643789656,0.83159407,101270.0,101260.0,0.0681]
[1750643790091,0.83159407,101270.0,101260.0,0.0621]
[1750643790292,0.5406855,101270.0,101260.0,0.0621]
[1750643790493,0.83259407,101270.0,101260.0,0.0621]
[1750643790701,0.83259407,101270.0,101260.0,0.06331]
[1750643791596,0.83259407,101270.0,101260.0,0.0621]
[1750643791815,0.80226084,101270.0,101260.0,0.0621]
[1750643792651,0.82160268,101270.0,101260.0,0.0317]
[1750643792998,0.86496268,101270.0,101260.0,0.0317]
[1750643793404,0.86393268,101270.0,101260.0,0.0317]
[1750643794270,0.86392286,101270.0,101260.0,0.0317]
[1750643795124,0.65944286,101270.0,101260.0,0.0317]
[1750643795355,0.86396286,101270.0,101260.0,0.0649]
[1750643795936,0.86396286,101270.0,101260.0,0.0001]
[1750643796990,0.86396495,101270.0,101260.0,0.0001]
[1750643797985,0.86307495,101270.0,101260.0,0.0648]
[1750643798210,0.86307495,101270.0,101260.0,0.06601]
[1750643798438,0.65855495,101270.0,101260.0,0.06601]
[1750643798587,0.86307495,101270.0,101260.0,0.06601]
[1750643798770,0.86307495,101270.0,101260.0,0.0648]
[1750643799471,0.65855495,101270.0,101260.0,0.0648]
[1750643799707,0.81971495,101270.0,101260.0,0.06601]
[1750643799904,0.8197202,101270.0,101260.0,0.06411]
[1750643800465,0.36765163,101270.0,101260.0,0.06411]
[1750643800670,0.01022721,101270.0,101260.0,0.14325132]
[1750643801076,0.35022721,101270.0,101260.0,0.14325132]
[1750643801254,0.01022721,101270.0,101260.0,0.18666731]
[1750643801456,0.01022721,101270.0,101260.0,0.14325132]
[1750643802709,0.01023227,101270.0,101260.0,0.14325132]
[1750643804733,0.01023383,101270.0,101260.0,0.14325132]
[1750643804908,0.30114245,101270.0,101260.0,0.06411]
[1750643805115,0.31962587,101270.0,101260.0,0.06411]
[1750643805555,0.31963374,101270.0,101260.0,0.06411]
[1750643805965,0.31963493,101270.0,101260.0,0.06411]
[1750643808393,0.31964814,101270.0,101260.0,0.06411]
[1750643808648,0.31965438,101270.0,101260.0,0.06411]
[1750643808789,0.02874581,101270.0,101260.0,0.06411]
[1750643811299,0.02875009,101270.0,101260.0,0.35748727]
[1750643811421,0.02875009,101270.0,101260.0,0.35501857]
[1750643812185,0.01025346,101270.0,101260.0,0.35501857]
[1750643812913,0.001,101270.0,101260.0,0.35501857]
[1750643813116,0.01025164,101270.0,101260.0,0.35501857]
[1750643813824,0.01025164,101270.0,101260.0,0.51617857]
[1750643814218,0.01025164,101270.0,101260.0,0.22527]
[1750643815666,0.01025164,101270.0,101260.0,0.52357]
[1750643816826,0.01025164,101270.0,101260.0,0.81447857]
[1750643817193,0.01025228,101270.0,101260.0,0.81447857]
[1750643817599,0.01025228,101270.0,101260.0,0.54684462]
[1750643818496,0.01025228,101270.0,101260.0,0.51617857]
[1750643820737,0.01025228,101270.0,101260.0,0.82901942]
[1750643820940,0.01025228,101270.0,101260.0,0.92931881]
[1750643820941,0.001,101270.0,101260.0,0.92931881]
[1750643821928,0.49538857,101310.0,101260.0,0.86641881]
[1750643822165,0.34,101300.0,101290.0,0.031]
[1750643822399,0.34923922,101300.0,101290.0,0.06402]
[1750643823302,0.3492389,101300.0,101290.0,0.06402]
[1750643824714,0.3522389,101300.0,101290.0,0.06402]
[1750643825371,0.35222933,101300.0,101290.0,0.06402]
[1750643828241,0.35223085,101300.0,101290.0,0.06402]
[1750643828491,0.35223085,101300.0,101290.0,0.06648793]
[1750643828722,0.35223085,101300.0,101290.0,0.06402]
[1750643829519,0.34923085,101300.0,101290.0,0.06402]
[1750643829898,0.35023085,101300.0,101290.0,0.06402]
[1750643830164,0.01023085,101300.0,101290.0,0.06402]
[1750643830716,0.35023085,101300.0,101290.0,0.06402]
[1750643830973,0.35023174,101300.0,101290.0,0.22514]
[1750643831199,0.35023174,101300.0,101290.0,0.06402]
[1750643833634,0.35023174,101300.0,101290.0,0.06399]
[1750643835211,0.01023174,101300.0,101290.0,0.066458]
[1750643835436,0.01023174,101300.0,101290.0,0.35736657]
[1750643835668,0.01023174,101300.0,101290.0,0.35489857]
[1750643835908,0.35023174,101300.0,101290.0,0.06399]
[1750643836565,0.35023122,101300.0,101290.0,0.06399]
[1750643837294,0.01023122,101300.0,101290.0,0.15333199]
[1750643837521,0.01023122,101300.0,101290.0,0.06399]
[1750643839984,0.00732735,101300.0,101290.0,0.06399]
[1750643841269,0.29823592,101300.0,101290.0,0.06399]
[1750643841957,0.00732735,101300.0,101290.0,0.06399]
[1750643842108,0.63104732,101310.0,101290.0,0.03219]
[1750643842325,0.64952718,101310.0,101290.0,0.06449]
[1750643842735,0.64952718,101310.0,101300.0,0.0323]
[1750643843152,0.35861861,101310.0,101300.0,0.0323]
[1750643843361,0.64952718,101310.0,101300.0,0.0323]
[1750643843612,0.35861861,101310.0,101300.0,0.0323]
[1750643843820,0.64952718,101310.0,101300.0,0.0323]
[1750643844150,0.64952718,101310.0,101300.0,0.06409]
[1750643844558,0.01861861,101310.0,101300.0,0.07841313]
[1750643845004,0.00013875,101310.0,101300.0,0.35746648]
[1750643845202,0.00013875,101310.0,101300.0,0.06409]
[1750643845388,0.00213875,101310.0,101300.0,0.06409]
[1750643845588,0.00013875,101310.0,101300.0,0.06409]
[1750643846232,0.00013875,101310.0,101300.0,0.10750399]
[1750643846432,0.00013875,101310.0,101300.0,0.40088007]
[1750643846637,0.00013875,101310.0,101300.0,0.55949256]
[1750643847567,0.00013875,101310.0,101300.0,0.57403341]
[1750643848466,0.00013875,101310.0,101300.0,0.57603341]
[1750643851196,0.00013875,101310.0,101300.0,0.87433341]
[1750643851937,0.00938356,101310.0,101300.0,0.87433341]
[1750643852143,0.00938356,101310.0,101300.0,0.54001085]
[1750643852343,0.00938356,101310.0,101300.0,0.83091942]
[1750643856414,0.00938016,101310.0,101300.0,0.83091942]
[1750643858331,0.32494397,101330.0,101310.0,0.064]
[1750643858546,0.3435167,101330.0,101310.0,0.36349]
[1750643858756,0.3435167,101330.0,101310.0,0.44669194]
[1750643858979,0.29090857,101320.0,101310.0,0.3623]
[1750643859219,0.29090857,101320.0,101300.0,0.16304]
[1750643859220,0.36057997,101320.0,101300.0,0.16304]
[1750643859412,0.29090857,101310.0,101300.0,0.002]
[1750643859625,0.0184814,101310.0,101300.0,0.16304]
[1750643859839,0.0184814,101310.0,101300.0,0.22564]
[1750643860023,0.0184814,101310.0,101300.0,0.22683]
[1750643860290,0.31027997,101320.0,101300.0,0.22683]
[1750643860505,0.31027997,101320.0,101300.0,0.27860386]
[1750643860717,0.31027997,101320.0,101300.0,0.11756386]
[1750643860948,0.31027997,101320.0,101300.0,0.11956386]
[1750643861161,0.31027997,101320.0,101300.0,0.11756386]
[1750643862009,0.31028487,101320.0,101300.0,0.06579]
[1750643862216,0.34308487,101320.0,101300.0,0.06579]
[1750643862421,0.34219487,101320.0,101300.0,0.0646]
[1750643862637,0.34308487,101320.0,101300.0,0.06579]
[1750643862841,0.34308685,101320.0,101300.0,0.22679]
[1750643863260,0.34308685,101320.0,101300.0,0.06579]
[1750643863467,0.68308685,101320.0,101300.0,0.22679]
[1750643863681,0.48093334,101320.0,101300.0,0.06579]
[1750643864967,0.48093563,101320.0,101300.0,0.0646]
[1750643865192,0.49813563,101320.0,101300.0,0.0646]
[1750643866182,0.44813563,101320.0,101300.0,0.14489132]
[1750643867958,0.47873563,101320.0,101300.0,0.14489132]
[1750643868162,0.47874643,101320.0,101300.0,0.14489132]
[1750643869071,0.49594643,101320.0,101300.0,0.14374132]
[1750643869443,0.29090857,101310.0,101290.0,0.062]
[1750643869652,0.01850137,101310.0,101300.0,0.10994132]
[1750643869851,0.34,101320.0,101310.0,0.0308]
[1750643870068,0.6503014,101320.0,101310.0,0.0308]
[1750643870271,0.35939283,101320.0,101310.0,0.01422913]
[1750643870518,0.6595527,101320.0,101310.0,0.0308]
[1750643871174,0.36775413,101320.0,101310.0,0.0308]
[1750643871387,0.36775413,101320.0,101310.0,0.06195]
[1750643871583,0.3492513,101320.0,101310.0,0.35532608]
[1750643871843,0.3492513,101320.0,101310.0,0.35285857]
[1750643871988,0.3492513,101320.0,101310.0,0.06195]
[1750643872188,0.3492513,101320.0,101310.0,0.35532593]
[1750643872546,0.3492513,101320.0,101310.0,0.35285857]
[1750643872749,0.34,101320.0,101310.0,0.35285857]
[1750643873892,0.34,101320.0,101310.0,0.51501857]
[1750643874258,0.34925245,101320.0,101310.0,0.51501857]
[1750643876728,0.34925496,101320.0,101310.0,0.51501857]
[1750643878480,0.34925496,101320.0,101310.0,0.57875856]
[1750643878919,0.34925496,101320.0,101310.0,0.51501857]
[1750643880732,0.34,101320.0,101310.0,0.81331857]
[1750643880932,0.34925405,101320.0,101310.0,0.81331857]
[1750643882989,0.34925405,101320.0,101310.0,0.52241]
[1750643883424,0.34925405,101320.0,101310.0,0.5211]
[1750643883632,0.34925322,101320.0,101310.0,0.52225]
[1750643884911,0.34925322,101320.0,101310.0,0.3591]
[1750643885162,0.64105191,101320.0,101310.0,0.2983]
[1750643885383,0.65955876,101320.0,101310.0,0.2983]
[1750643885595,0.70935876,101320.0,101310.0,0.2983]
[1750643886230,0.65955876,101320.0,101310.0,0.2983]
[1750643886770,0.65955876,101320.0,101300.0,0.52471]
[1750643888007,0.65955857,101320.0,101300.0,0.52471]
[1750643889593,0.36865,101320.0,101300.0,0.52471]
[1750643889863,0.36776,101320.0,101310.0,0.0302]
[1750643890275,0.36776,101320.0,101310.0,0.0628]
[1750643890912,0.3677598,101320.0,101310.0,0.0628]
[1750643891127,0.3677598,101320.0,101310.0,0.0302]
[1750643893628,0.34925322,101320.0,101310.0,0.0302]
[1750643893851,0.34,101320.0,101310.0,0.0302]
[1750643894792,0.63090857,101320.0,101310.0,0.0302]
[1750643895007,0.63090857,101320.0,101300.0,0.52643]
[1750643895234,0.63179857,101320.0,101300.0,0.52643]
[1750643895463,0.66319857,101320.0,101300.0,0.52528]
[1750643897080,0.63179857,101320.0,101300.0,0.52528]
[1750643897311,0.63179857,101320.0,101300.0,0.52641]
[1750643897551,0.63179857,101320.0,101310.0,0.0332]
[1750643897989,0.34,101320.0,101310.0,0.0332]
[1750643898218,0.63090857,101320.0,101310.0,0.0332]
[1750643900856,0.65867151,101320.0,101310.0,0.0332]
[1750643901389,0.70756151,101320.0,101300.0,0.0319]
[1750643901660,0.70756267,101320.0,101300.0,0.0319]
[1750643902484,0.70756267,101320.0,101300.0,0.0651]
[1750643902486,0.69036267,101320.0,101300.0,0.0651]
[1750643903262,0.69036573,101320.0,101300.0,0.0651]
[1750643903498,0.72410838,101320.0,101300.0,0.0651]
[1750643903750,0.69036757,101320.0,101300.0,0.0651]
[1750643904920,0.35036757,101320.0,101300.0,0.0651]
[1750643905138,0.31956821,101320.0,101300.0,0.0651]
[1750643905358,0.31956821,101320.0,101300.0,0.06623]
[1750643905846,0.35276821,101320.0,101300.0,0.0651]
[1750643906553,0.33425554,101320.0,101300.0,0.0651]
[1750643906758,0.35277236,101320.0,101300.0,0.0651]
[1750643906964,0.36997236,101320.0,101300.0,0.0651]
[1750643909215,0.29090857,101310.0,101300.0,0.0651]
[1750643909437,0.31957681,101310.0,101300.0,0.0319]
[1750643909673,0.31755681,101310.0,101300.0,0.0319]
[1750643910116,0.02777824,101310.0,101300.0,0.0319]
[1750643910331,0.02777824,101310.0,101300.0,0.0643]
[1750643911208,0.02777824,101310.0,101300.0,0.0663]
[1750643911440,0.02777824,101310.0,101300.0,0.073973]
[1750643911647,0.00925941,101310.0,101300.0,0.15311432]
[1750643912071,0.02778321,101310.0,101300.0,0.15311432]
[1750643912301,0.02778319,101310.0,101300.0,0.15311432]
[1750643914816,0.02778976,101310.0,101300.0,0.15311432]
[1750643915292,0.02779794,101310.0,101300.0,0.15311432]
[1750643915501,0.02779794,101310.0,101300.0,0.14657132]
[1750643915714,0.00926598,101310.0,101300.0,0.43747989]
[1750643915971,0.00926598,101310.0,101300.0,0.59887989]
[1750643916211,0.00926598,101310.0,101300.0,0.89717989]
[1750643917315,0.00926598,101310.0,101300.0,0.91172074]
[1750643918509,0.00926598,101310.0,101300.0,1.00731281]
[1750643919603,0.03412673,101330.0,101310.0,0.0605]
[1750643919811,0.06191408,101330.0,101320.0,0.06163]
[1750643920281,0.40191408,101330.0,101320.0,0.06163]
[1750643920729,0.40190695,101330.0,101320.0,0.06163]
[1750643921189,0.05890695,101330.0,101320.0,0.06163]
[1750643921428,0.05690695,101330.0,101320.0,0.06163]
[1750643921681,0.05890695,101330.0,101320.0,0.06163]
[1750643923687,0.05890073,101330.0,101320.0,0.06163]
[1750643924964,0.05690073,101330.0,101320.0,0.06163]
[1750643925403,0.05790073,101330.0,101320.0,0.06163]
[1750643926522,0.05789606,101330.0,101320.0,0.06163]
[1750643929280,0.03012673,101330.0,101320.0,0.06163]
[1750643929504,0.05787973,101330.0,101320.0,0.06163]
[1750643929965,0.05787973,101330.0,101320.0,0.0605]
[1750643929966,0.3487883,101330.0,101320.0,0.0605]
[1750643931279,0.05787973,101330.0,101320.0,0.0605]
[1750643931551,0.3487883,101330.0,101320.0,0.06168]
[1750643932205,0.34878429,101330.0,101320.0,0.06168]
[1750643932908,0.05787572,101330.0,101320.0,0.06168]
[1750643933341,0.04862472,101330.0,101320.0,0.06168]
[1750643933559,0.34878243,101330.0,101320.0,0.06168]
[1750643933785,0.03937587,101330.0,101320.0,0.06168]
[1750643934036,0.05787415,101330.0,101320.0,0.06168]
[1750643934284,0.04862501,101330.0,101320.0,0.06168]
[1750643934751,0.03012673,101330.0,101320.0,0.06168]
[1750643934959,0.05787409,101330.0,101320.0,0.06168]
[1750643935358,0.34878266,101330.0,101320.0,0.06168]
[1750643936731,0.34878287,101330.0,101320.0,0.06168]
[1750643938778,0.34878287,101330.0,101320.0,0.0605]
[1750643939446,0.3210353,101330.0,101320.0,0.0605]
[1750643939665,0.34879265,101330.0,101320.0,0.0605]
[1750643940788,0.34879265,101330.0,101320.0,0.0302]
[1750643940999,0.34968265,101330.0,101320.0,0.0302]
[1750643942086,0.31956134,101330.0,101320.0,0.0302]
[1750643943661,0.31867134,101330.0,101320.0,0.0302]
[1750643943872,0.31956134,101330.0,101310.0,0.0605]
[1750643944086,0.34945394,101330.0,101310.0,0.06168]
[1750643944948,0.34946074,101330.0,101310.0,0.06168]
[1750643945103,0.34946074,101330.0,101320.0,0.033]
[1750643945307,0.34857074,101330.0,101320.0,0.033]
[1750643945516,0.34857074,101330.0,101320.0,0.0634]
[1750643947878,0.34859836,101330.0,101320.0,0.0634]
[1750643948110,0.05768979,101330.0,101320.0,0.0634]
[1750643948378,0.34859836,101330.0,101320.0,0.0634]
[1750643950159,0.34859836,101330.0,101320.0,0.033]
[1750643950648,0.33933263,101330.0,101320.0,0.033]
[1750643950873,0.399188,101330.0,101310.0,0.0619]
[1750643951099,0.29090857,101320.0,101310.0,0.0619]
[1750643951325,0.3187054,101320.0,101310.0,0.0619]
[1750643952429,0.02779683,101320.0,101310.0,0.0619]
[1750643952646,0.02779683,101320.0,101310.0,0.06308]
[1750643953081,0.02779683,101320.0,101310.0,0.06508]
[1750643953538,0.01853146,101320.0,101310.0,0.06508]
[1750643953981,0.32169117,101330.0,101320.0,0.0303]
[1750643954206,0.32863901,101330.0,101320.0,0.0303]
[1750643955352,0.34716503,101330.0,101320.0,0.0303]
[1750643955578,0.35642748,101330.0,101320.0,0.0303]
[1750643956457,0.35742748,101330.0,101320.0,0.0303]
[1750643956969,0.33195362,101330.0,101320.0,0.0303]
[1750643957175,0.35742537,101330.0,101320.0,0.0303]
[1750643959309,0.35653537,101330.0,101320.0,0.0303]
[1750643959551,0.35653537,101330.0,101320.0,0.0607]
[1750643959967,0.35653508,101330.0,101320.0,0.0607]
[1750643960387,0.35742508,101330.0,101320.0,0.0303]
[1750643960613,0.35742508,101330.0,101310.0,0.0647]
[1750643960820,0.29090857,101320.0,101310.0,0.0647]
[1750643961036,0.65869564,101320.0,101300.0,0.37744132]
[1750643961247,0.29090857,101310.0,101300.0,0.43970132]
[1750643961465,0.30017073,101310.0,101300.0,0.43970132]
[1750643962117,0.33391338,101310.0,101300.0,0.43854132]
[1750643962336,0.02778768,101310.0,101300.0,0.43854132]
[1750643962599,0.02778301,101310.0,101300.0,0.43970132]
[1750643963472,0.02778301,101310.0,101300.0,0.14140132]
[1750643963944,0.02778343,101310.0,101300.0,0.14140132]
[1750643964161,0.02778343,101310.0,101300.0,0.14740132]
[1750643964386,0.00926216,101310.0,101300.0,0.14740132]
[1750643965786,0.00925943,101310.0,101300.0,0.14740132]
[1750643966264,0.29090857,101320.0,101310.0,0.0641]
[1750643966486,0.30942778,101320.0,101310.0,0.0641]
[1750643967676,0.30942778,101320.0,101310.0,0.0661]
[1750643969020,0.30942778,101320.0,101310.0,0.06726]
[1750643971069,0.64942778,101320.0,101310.0,0.06726]
[1750643972331,0.41994338,101320.0,101310.0,0.06726]
[1750643974371,0.41994338,101320.0,101310.0,0.0661]
[1750643975083,0.41994338,101320.0,101310.0,0.0344]
[1750643975288,0.41994338,101320.0,101310.0,0.002]
[1750643975511,0.42083338,101320.0,101310.0,0.002]
[1750643975958,0.42083338,101320.0,101310.0,0.035]
[1750643976427,0.41994338,101320.0,101310.0,0.035]
[1750643977738,0.41994338,101320.0,101310.0,0.0674]
[1750643978171,0.42920429,101320.0,101310.0,0.0674]
[1750643978634,0.08920429,101320.0,101310.0,0.0674]
[1750643979985,0.08920514,101320.0,101310.0,0.0674]
[1750643982226,0.00926176,101320.0,101310.0,0.0674]
[1750643982683,0.38178317,101330.0,101310.0,0.0674]
[1750643982896,0.39130719,101330.0,101310.0,0.06856]
[1750643983867,0.39130719,101330.0,101310.0,0.06656]
[1750643984080,0.39230719,101330.0,101310.0,0.06656]
[1750643984478,0.41083397,101330.0,101310.0,0.06656]
[1750643985505,0.41083397,101330.0,101310.0,0.0654]
[1750643985721,0.29090857,101320.0,101310.0,0.0654]
[1750643985927,0.31870115,101320.0,101310.0,0.0654]
[1750643986132,0.31870099,101320.0,101310.0,0.0654]
[1750643986560,0.31870099,101320.0,101310.0,0.06659]
[1750643986763,0.02779242,101320.0,101310.0,0.06659]
[1750643987790,0.01852828,101320.0,101310.0,0.06859]
[1750643987992,0.02779387,101320.0,101310.0,0.06859]
[1750643988404,0.00926559,101320.0,101310.0,0.06859]
[1750643988801,0.02779678,101320.0,101310.0,0.06859]
[1750643990513,0.02779908,101320.0,101310.0,0.06859]
[1750643991423,0.02780214,101320.0,101310.0,0.00319]
[1750643991846,0.02780214,101320.0,101310.0,0.06529]
[1750643993322,0.02779963,101320.0,101310.0,0.06529]
[1750643995277,0.02779338,101320.0,101310.0,0.06529]
[1750643997115,0.02779194,101320.0,101310.0,0.00319]
[1750643997788,0.02779194,101320.0,101310.0,0.06719]
[1750643999980,0.02778913,101320.0,101310.0,0.06719]
[1750644002882,0.02778913,101320.0,101310.0,0.06965741]
[1750644004052,0.02778913,101320.0,101310.0,0.36056598]
[1750644004255,0.00926398,101320.0,101310.0,0.53371942]
[1750644004698,0.00926398,101320.0,101310.0,0.82462799]
[1750644004912,0.00926398,101320.0,101310.0,0.63401881]
[1750644005331,0.00926091,101320.0,101310.0,0.63311881]
[1750644005447,0.0298926,101330.0,101310.0,0.56882881]
[1750644005656,0.00926091,101330.0,101320.0,0.35519857]
[1750644006269,0.00926091,101330.0,101320.0,0.35402485]
[1750644006879,0.01026091,101330.0,101320.0,0.35402485]
[1750644008356,0.01026091,101330.0,101320.0,0.06429]
[1750644010611,0.02665776,101330.0,101320.0,0.06429]
[1750644010824,0.001,101330.0,101320.0,0.06429]
[1750644011023,0.001,101330.0,101320.0,0.22533]
[1750644011239,0.29070645,101330.0,101320.0,0.06429]
[1750644011453,0.08664904,101330.0,101320.0,0.0631]
[1750644011684,0.08664904,101330.0,101320.0,0.06429]
[1750644011891,0.00924427,101330.0,101320.0,0.06429]
[1750644012033,0.28974645,101340.0,101330.0,0.032]
[1750644012235,0.31752679,101340.0,101330.0,0.032]
[1750644012647,0.34331167,101340.0,101330.0,0.032]
[1750644012862,0.12213964,101340.0,101330.0,0.032]
[1750644013063,0.12213964,101340.0,101330.0,0.0625]
[1750644013900,0.11289276,101340.0,101330.0,0.032]
[1750644014564,0.11389276,101340.0,101330.0,0.032]
[1750644017095,0.04531834,101340.0,101330.0,0.032]
[1750644017318,0.28974645,101340.0,101330.0,0.0639]
[1750644017621,0.34227637,101350.0,101330.0,0.0639]
[1750644017846,0.63202282,101350.0,101330.0,0.0639]
[1750644018061,0.67092688,101350.0,101330.0,0.06509]
[1750644018276,0.67092688,101350.0,101340.0,0.064]
[1750644018491,0.67092688,101350.0,101330.0,0.06549]
[1750644018699,0.87520688,101350.0,101340.0,0.0643]
[1750644019570,0.54218043,101350.0,101340.0,0.0643]
[1750644019799,0.51249443,101350.0,101340.0,0.0643]
[1750644020709,0.35149443,101350.0,101340.0,0.0643]
[1750644020939,0.03979406,101350.0,101340.0,0.43437777]
[1750644021142,0.03979406,101350.0,101340.0,0.48215933]
[1750644021351,5e-05,101360.0,101350.0,0.06459]
[1750644021564,5e-05,101360.0,101350.0,0.35433645]
[1750644021989,0.04099357,101360.0,101350.0,0.35433645]
[1750644022201,5e-05,101360.0,101350.0,0.35433645]
[1750644022402,5e-05,101360.0,101350.0,0.56346238]
[1750644022616,5e-05,101360.0,101350.0,0.51533645]
[1750644023320,5e-05,101360.0,101350.0,0.5298773]
[1750644024868,5e-05,101360.0,101350.0,0.5318773]
[1750644025075,5e-05,101360.0,101350.0,0.5348773]
[1750644025282,5e-05,101360.0,101350.0,0.5328773]
[1750644025498,5e-05,101360.0,101350.0,0.5398773]
[1750644026138,5e-05,101360.0,101350.0,0.64017669]
[1750644030189,5e-05,101360.0,101350.0,0.5398773]
[1750644030784,5e-05,101360.0,101350.0,0.5830773]
[1750644031140,5e-05,101360.0,101350.0,0.8813373]